[Event "2nd Kalyan Dombivali 2019"]
[Site "Kalyan"]
[Date "2019.01.31"]
[Round "4"]
[White "Kadam Om Manish"]
[Black "Awade Pradeep"]
[Result "0-1"]
[ECO "B06"]
[WhiteElo "1944"]
[BlackElo "1538"]
[Annotator "NA RC"]
[PlyCount "82"]
[EventDate "2019.01.28"]
[EventType "swiss"]
[EventRounds "10"]
[EventCountry "IND"]
[SourceTitle "playchess.com"]
[Source "ChessBase"]
[SourceQuality "1"]
[TimeControl "5400+30"]

{[%evp 18,81,54,43,316,399,432,553,422,417,577,615,593,603,582,-20,0,-28,32767,32767,32767,32767,32767,-323,-321,-340,-291,32767,32767,32767,-211,-321,-303,32767,32767,32767,32767,32767,-228,-362,-271,-320,-358,-489,-445,-602,-620,-533,-599,-645,-604,-572,-698,-612,-400,-402,0,-582,-652,-821,-910,-1461,-1370,-1233,-1318,-29997]} 1. e4 {[%emt 0:00:00]} (1. d4 g6 {0-1 (26) Aleskerov,F (2289)-Miroshnichenko,E (2686) Baku 2010}) 1... g6 {[%emt 0:06:59]} 2. d4 {[%emt 0:00:20]} Bg7 {[%emt 0:00:01]} 3. f4 {[%emt 0:04:40]} c5 {[%emt 0:01:54]} 4. dxc5 {[%emt 0:05:28]} Qa5+ 5. c3 {[%emt 0:00:08]} (5. Bd2 Qxc5 6. Bc3 Nf6 7. Qd4 Qxd4 8. Bxd4 Nc6 9. Bc3 e5 10. Bd3 d5 11. exd5 Nxd5 12. fxe5 Nxe5 {0-1 (26) Aleskerov,F (2289)-Miroshnichenko,E (2686) Baku 2010}) 5... Qxc5 {[%emt 0:00:54]} 6. Nf3 {[%emt 0:00:20] B06: Modern Defence} d6 {[%emt 0:04:52]} 7. Bd3 {[%emt 0:01:13]} Nc6 {[%emt 0:07:02]} 8. Qe2 {[%emt 0:01:18]} Nf6 {[%emt 0:01:05]} 9. Na3 $146 {[%emt 0:04:45]} ({Predecessor:} 9. h3 Nh5 10. Qf2 Nb4 11. Qd2 Nxd3+ 12. Qxd3 f5 {0-1 (31) Eulering,G (2128)-Zubarev,A (2548) Boeblingen 2015}) 9... Be6 {[%emt 0:11:02]} 10. Nb5 {[%emt 0:02:06]} Rc8 $2 {[%emt 0:07:08] [#]} (10... Qb6 $14) 11. f5 $1 {[%emt 0:01:28]} Nxe4 {[%emt 0:09:18]} 12. fxe6 {[%emt 0:00:20]} ({And not} 12. Qxe4 Bxf5 13. Qe2 a6 $11) ({Not} 12. Bxe4 Bc4 $18 {[%mdl 64] Double Attack}) 12... Nxc3 {[%emt 0:06:02]} 13. exf7+ {[%emt 0:00:16]} ({Don't do} 13. bxc3 Bxc3+ 14. Nxc3 Qxc3+ 15. Qd2 Qxa1 $18) 13... Kxf7 {[%emt 0:00:43]} 14. Bc4+ {[%emt 0:06:51]} d5 {[%emt 0:02:25]} 15. Ng5+ {[%emt 0:02:29]} Ke8 {[%emt 0:00:45]} 16. Qe6 $2 {[%emt 0:05:30]} ({White must play} 16. bxc3 $18 dxc4 17. Ne6 {[%mdl 64] Double Attack} Qxb5 18. Nxg7+ Kd7 19. O-O) 16... Nd8 {[%emt 0:01:15]} 17. Qg4 {[%emt 0:18:08]} Qxc4 {[%emt 0:17:24]} 18. Qxc4 {[%emt 0:00:13]} Rxc4 {[%emt 0:00:02]} 19. Nxc3 {[%emt 0:00:14]} Rxc3 {[%emt 0:00:02]} 20. Kd1 {[%emt 0:08:37]} Rc4 {[%emt 0:01:30]} 21. Re1 {[%emt 0:02:04]} h6 {[%emt 0:00:29]} 22. Nf3 {[%emt 0:00:04]} Nc6 {[%emt 0:01:35]} 23. Be3 {[%emt 0:03:08]} d4 {[%emt 0:02:20]} ({Don't play} 23... Bxb2 24. Rb1) 24. Rc1 {[%emt 0:03:01]} (24. Bd2 {keeps fighting.}) 24... Rxc1+ {[%emt 0:02:16]} 25. Bxc1 {[%emt 0:00:03]} g5 {[%emt 0:01:03]} 26. Re4 {[%emt 0:00:31]} e5 {[%emt 0:00:35]} 27. h4 {[%emt 0:00:46]} Bf6 {[%emt 0:00:55]} 28. a3 {[%emt 0:05:57]} (28. hxg5 {might work better.} hxg5 29. Bxg5) 28... Kd7 {[%emt 0:02:25]} 29. b4 {[%emt 0:03:28]} b5 {[%emt 0:00:19]} 30. Kc2 {[%emt 0:00:53]} (30. hxg5 {is a better defense.} hxg5 31. Bxg5 Bxg5 32. Nxg5) 30... Ke6 {[%emt 0:01:01]} 31. Bd2 {[%emt 0:03:31]} (31. hxg5 $142 hxg5 32. Bxg5) 31... Kf5 {[%emt 0:00:32]} 32. Kd3 {[%emt 0:00:15]} g4 {[%emt 0:00:24]} 33. Nh2 {[%emt 0:09:12]} h5 {[%emt 0:00:01]} 34. Be1 {[%emt 0:01:14]} Ne7 {[%emt 0:00:51]} 35. Nf1 $1 $11 {[%emt 0:04:11]} Kg6 {[%emt 0:02:25]} (35... Ng6 36. Ng3+ Ke6 37. Bd2) 36. Bg3 {[%emt 0:01:04]} Kf5 $2 {[%emt 0:00:50]} ({Black should try} 36... Nf5 $19 37. Bxe5 Rc8 38. Bxf6 Kxf6) 37. Re2 $2 {[%emt 0:02:33]} Rc8 {[%emt 0:01:04]} 38. Rf2+ {[%emt 0:00:53]} Ke6 {[%emt 0:01:33]} 39. Nd2 {[%emt 0:00:38]} Rc3+ {[%emt 0:00:28]} 40. Ke2 {[%emt 0:00:04]} Nd5 {[%emt 0:01:36]} 41. Bh2 {[%emt 0:00:32]} g3 {[%emt 0:01:19]} 0-1

[Event "2nd Kalyan Dombivali 2019"]
[Site "Kalyan"]
[Date "2019.01.31"]
[Round "4"]
[White "Vijay, Anand M."]
[Black "Gurav Sanmil"]
[Result "1-0"]
[ECO "C44"]
[WhiteElo "1841"]
[BlackElo "1311"]
[Annotator "NA RC"]
[PlyCount "119"]
[EventDate "2019.01.28"]
[EventType "swiss"]
[EventRounds "10"]
[EventCountry "IND"]
[SourceTitle "playchess.com"]
[Source "ChessBase"]
[SourceQuality "1"]
[TimeControl "5400+30"]

{[%evp 29,119,22,14,23,20,8,17,10,14,0,0,0,25,32767,34,44,32767,32767,32767,32767,32767,32767,32767,76,97,32767,32767,32767,32767,32767,131,88,103,32767,32767,32767,32767,84,32767,32767,32767,32767,267,286,275,261,32767,554,491,533,778,854,32767,32767,32767,32767,754,1447,838,32767,1365,733,648,644,518,701,517,583,491,554,764,906,712,1117,1175,1168,32767,32767,32767,32767,32767,32767,32767,32767,32767,32767,5102,0,32767,5758,29979,29980]} 1. e4 {[%emt 0:19:05]} e5 {[%emt 0:00:00]} 2. Nf3 {[%emt 0:00:08]} Nc6 {[%emt 0:00:00]} 3. d4 {[%emt 0:00:05]} exd4 {[%emt 0:00:00]} 4. Nxd4 {[%emt 0:00:03]} Nf6 {[%emt 0:00:00]} 5. Nxc6 {[%emt 0:00:07]} bxc6 {[%emt 0:00:13]} 6. Nc3 {[%emt 0:00:07]} Bb4 {[%emt 0:00:34]} 7. Bd3 {[%emt 0:00:06]} d5 {[%emt 0:00:08]} 8. exd5 {[%emt 0:00:08]} cxd5 {[%emt 0:00:21]} 9. O-O {[%emt 0:00:07]} O-O {[%emt 0:00:43]} 10. Bg5 {[%emt 0:00:05]} c6 {[%emt 0:00:54]} 11. Na4 {[%emt 0:00:13]} Bd6 {[%emt 0:03:43]} 12. c4 {[%emt 0:00:06]} Be7 {[%emt 0:07:21]} 13. Rc1 {[%emt 0:01:17]} Be6 {[%emt 0:04:41]} 14. cxd5 {[%emt 0:01:02]} Nxd5 {[%emt 0:09:02]} 15. Bxe7 {[%emt 0:00:32]} Qxe7 {[%emt 0:00:58]} 16. Nc5 {[%emt 0:01:05]} Nf4 {[%emt 0:07:11]} 17. Nxe6 {[%emt 0:01:50]} Qxe6 {[%emt 0:02:55]} 18. Bc4 {[%emt 0:00:06]} Qe4 {[%emt 0:02:37]} 19. Qg4 {[%emt 0:13:34]} h5 {[%emt 0:06:39]} 20. Qg3 {[%emt 0:00:38]} h4 {[%emt 0:01:13]} 21. Qg4 {[%emt 0:00:35]} Rae8 {[%emt 0:21:28]} 22. h3 {[%emt 0:04:31]} Ng6 {[%emt 0:08:29]} 23. Qxe4 {[%emt 0:00:58]} Rxe4 {[%emt 0:00:05]} 24. Bd3 {[%emt 0:00:03]} Re6 {[%emt 0:00:29]} 25. Bxg6 {[%emt 0:01:15]} Rxg6 {[%emt 0:05:27]} 26. Rc4 {[%emt 0:01:11]} Rh6 {[%emt 0:01:11]} 27. Ra4 Rb8 {[%emt 0:01:13]} 28. b3 {[%emt 0:00:52]} Rb7 {[%emt 0:00:29]} 29. Rc1 {[%emt 0:00:05]} Kf8 {[%emt 0:01:40]} 30. Rc5 {[%emt 0:00:08]} Re7 {[%emt 0:08:41]} 31. Rca5 {[%emt 0:01:45]} Re1+ {[%emt 0:00:22]} 32. Kh2 {[%emt 0:00:06]} Rf6 {[%emt 0:00:28]} 33. Rxh4 {[%emt 0:10:33]} Rxf2 {[%emt 0:01:52]} 34. Rxa7 {[%emt 0:00:02]} g5 {[%emt 0:00:37]} 35. Rg4 {[%emt 0:00:34]} f5 {[%emt 0:02:36]} (35... f6 $16 {is a better defense.} 36. a4 Re7) 36. Rxg5 {[%emt 0:08:00]} f4 {[%emt 0:00:21]} 37. h4 {[%emt 0:02:42]} f3 {[%emt 0:02:33]} 38. Rf5+ {[%emt 0:00:07]} Kg8 {[%emt 0:00:28]} 39. Rxf3 {[%emt 0:00:09]} Rxf3 {[%emt 0:00:26]} 40. gxf3 {[%emt 0:00:01]} c5 {[%emt 0:00:21]} 41. Kg3 {[%emt 0:00:08]} Rg1+ {[%emt 0:00:12]} 42. Kf4 {[%emt 0:00:04]} Rh1 {[%emt 0:00:16]} 43. Kg5 {[%emt 0:00:48]} Rg1+ {[%emt 0:00:07]} 44. Kf5 {[%emt 0:00:30]} Rh1 {[%emt 0:00:12]} 45. Rc7 {[%emt 0:00:28]} Rxh4 {[%emt 0:00:15]} 46. Kg6 {[%emt 0:00:23]} Kf8 {[%emt 0:00:27]} 47. Rxc5 {[%emt 0:00:04]} Ke7 {[%emt 0:00:11]} 48. Rc4 {[%emt 0:00:26]} Rh2 {[%emt 0:00:11]} 49. a4 {[%emt 0:00:12]} Rb2 {[%emt 0:00:09]} 50. b4 {[%emt 0:00:06]} Ke6 {[%emt 0:00:18]} 51. Re4+ {[%emt 0:00:43]} Kd5 {[%emt 0:00:12]} 52. Kf5 {[%emt 0:00:05]} Rg2 {[%emt 0:00:55]} 53. b5 {[%emt 0:00:30]} Rg8 {[%emt 0:00:13]} 54. Kf4 {[%emt 0:00:11]} Rf8+ {[%emt 0:00:10]} 55. Ke3 {[%emt 0:00:02]} Kc5 {[%emt 0:00:22]} 56. f4 {[%emt 0:00:04]} Kb6 {[%emt 0:00:11]} 57. Re6+ {[%emt 0:01:02]} Ka5 {[%emt 0:00:07]} 58. Re4 $2 {[%emt 0:00:21]} (58. Ra6+ $18 Kb4 59. b6) 58... Rc8 {[%emt 0:00:25]} 59. f5 {[%emt 0:00:06]} Rc3+ {[%emt 0:00:28]} 60. Kf4 {[%emt 0:00:17]} 1-0

[Event "2nd Kalyan Dombivali 2019"]
[Site "Kalyan"]
[Date "2019.01.31"]
[Round "4"]
[White "Shreyas Ghadi"]
[Black "Saurabh Anand"]
[Result "0-1"]
[ECO "A40"]
[WhiteElo "1653"]
[BlackElo "2210"]
[Annotator "NA RC"]
[PlyCount "119"]
[EventDate "2019.01.28"]
[EventType "swiss"]
[EventRounds "10"]
[EventCountry "IND"]
[SourceTitle "playchess.com"]
[Source "ChessBase"]
[SourceQuality "1"]
[TimeControl "5400+30"]

1. d4 {[%emt 0:07:21]} Nf6 {[%emt 0:00:05]} 2. c4 {[%emt 0:00:45]} e6 {[%emt 0:00:07]} 3. g3 {[%emt 0:00:13]} Bb4+ {[%emt 0:00:46]} 4. Bd2 {[%emt 0:00:05]} a5 {[%emt 0:00:10]} 5. Bg2 {[%emt 0:00:13]} d6 {[%emt 0:00:19]} 6. Nf3 {[%emt 0:00:10]} Nbd7 {[%emt 0:00:08]} 7. O-O {[%emt 0:00:07]} e5 {[%emt 0:00:18]} 8. Be3 {[%emt 0:00:12]} exd4 {[%emt 0:01:32]} 9. Bxd4 {[%emt 0:00:06]} O-O {[%emt 0:00:07]} 10. a3 {[%emt 0:00:05]} Bc5 {[%emt 0:00:07]} 11. Nc3 {[%emt 0:00:04]} c6 {[%emt 0:02:57]} 12. b3 {[%emt 0:05:25]} Qe7 {[%emt 0:03:44]} 13. h3 {[%emt 0:04:45]} Bxd4 {[%emt 0:10:24]} 14. Nxd4 {[%emt 0:02:44]} Nb6 {[%emt 0:00:44]} 15. Kh2 {[%emt 0:11:47]} Rd8 {[%emt 0:03:14]} 16. Rc1 {[%emt 0:11:54]} Be6 {[%emt 0:01:42]} 17. f4 {[%emt 0:02:51]} a4 {[%emt 0:07:51]} 18. f5 {[%emt 0:02:14]} (18. Nxa4 $11 Nxa4 19. bxa4) 18... Bd7 {[%emt 0:00:33]} 19. Nxa4 {[%emt 0:05:41]} Nxa4 {[%emt 0:00:14]} 20. bxa4 {[%emt 0:00:02]} c5 {[%emt 0:03:14]} 21. Nb5 {[%emt 0:03:21]} Bc6 {[%emt 0:05:10]} 22. Nc3 {[%emt 0:02:28]} Qe5 {[%emt 0:11:22]} 23. Bd5 {[%emt 0:11:55]} Bxd5 {[%emt 0:03:31]} 24. cxd5 {[%emt 0:03:02]} Rdc8 {[%emt 0:02:07]} 25. Qd3 {[%emt 0:11:15]} c4 {[%emt 0:04:14]} 26. Qf3 {[%emt 0:00:01]} Ra5 {[%emt 0:01:15]} 27. Rcd1 {[%emt 0:02:37]} (27. e4 $14) 27... Nd7 {[%emt 0:01:08]} (27... Re8 $11) 28. Ne4 $2 {[%emt 0:01:27]} (28. Rb1 $1 $14 {stays ahead.}) 28... Re8 {[%emt 0:05:16]} ({Don't play} 28... Rxd5 $6 29. Rxd5 Qxd5 30. Nc3 $11) (28... c3 $17 29. f6 g6) 29. Nc3 {[%emt 0:03:51] [#]} (29. Qc3 $1 $15) 29... Nb6 $1 {[%emt 0:08:22]} 30. f6 {[%emt 0:01:41]} gxf6 {[%emt 0:01:03]} 31. Qxf6 {[%emt 0:06:26]} Qxf6 {[%emt 0:00:26]} 32. Rxf6 {[%emt 0:00:02]} Nxa4 {[%emt 0:00:08]} 33. Nxa4 Rxe2+ {[%emt 0:00:08]} 34. Kh1 {[%emt 0:00:56]} Rxa4 {[%emt 0:00:05]} 35. Rxd6 {[%emt 0:00:06]} Rxa3 {[%emt 0:01:23]} 36. Rd8+ Kg7 {[%emt 0:00:06]} 37. d6 {[%emt 0:00:24]} Raa2 {[%emt 0:04:45]} ({And not} 37... Rxg3 38. d7 $16) 38. Rb8 {[%emt 0:02:09]} Rh2+ {[%emt 0:08:16]} 39. Kg1 {[%emt 0:00:01]} Rag2+ {[%emt 0:00:05]} 40. Kf1 {[%emt 0:00:04]} Rxg3 {[%emt 0:00:22]} 41. Rd4 {[%emt 0:01:28]} Rb3 {[%emt 0:00:55]} ({Of course not} 41... Rgxh3 $6 42. Rg4+ Kh6 43. d7 $18) 42. Kg1 {[%emt 0:00:19]} Ra2 {[%emt 0:00:16]} ({But not} 42... Rhxh3 $6 43. Rg4+ Kf6 44. d7 $16) 43. Rd1 $1 {[%emt 0:00:19]} Rg3+ {[%emt 0:00:14]} 44. Kh1 {[%emt 0:00:13]} Rxh3+ {[%emt 0:00:05]} 45. Kg1 {[%emt 0:00:01]} Rg3+ {[%emt 0:00:02]} 46. Kh1 $2 {[%emt 0:00:13]} (46. Kf1 $11) 46... Ra5 {[%emt 0:00:16]} 47. Rd2 {[%emt 0:01:53]} Rh5+ {[%emt 0:00:06]} 48. Rh2 {[%emt 0:00:03]} Rxh2+ {[%emt 0:00:05]} 49. Kxh2 {[%emt 0:00:03]} Rd3 {[%emt 0:00:06]} 50. Rxb7 {[%emt 0:00:09]} Rxd6 {[%emt 0:00:04]} 51. Rc7 {[%emt 0:00:03]} Rd2+ {[%emt 0:00:05]} 52. Kg3 {[%emt 0:00:05]} Rc2 {[%emt 0:00:03]} 53. Kf3 {[%emt 0:00:11]} Rc1 {[%emt 0:00:12]} 54. Ke2 {[%emt 0:00:04]} c3 {[%emt 0:00:06]} 55. Kd3 {[%emt 0:00:09]} Rg1 $19 {[%emt 0:00:21]} 56. Kc2 {[%emt 0:00:15]} Rg3 {[%emt 0:00:05]} 57. Rxc3 {[%emt 0:00:04]} Rxc3+ {[%emt 0:00:04]} 58. Kxc3 {[%emt 0:00:04]} Kf6 {[%emt 0:00:06]} 59. Kd3 {[%emt 0:00:03]} Kf5 {[%emt 0:00:04]} 60. Ke3 {[%emt 0:00:03]} 0-1

[Event "2nd Kalyan Dombivali 2019"]
[Site "Kalyan"]
[Date "2019.01.31"]
[Round "4"]
[White "Chhabra Aakash"]
[Black "Saranya, J."]
[Result "1/2-1/2"]
[ECO "A45"]
[WhiteElo "1619"]
[BlackElo "2094"]
[Annotator "NA RC"]
[PlyCount "95"]
[EventDate "2019.01.28"]
[EventType "swiss"]
[EventRounds "10"]
[EventCountry "IND"]
[SourceTitle "playchess.com"]
[Source "ChessBase"]
[SourceQuality "1"]
[TimeControl "5400+30"]

{[%evp 16,95,38,0,0,-8,0,-2,6,-17,0,0,32767,32767,32767,32767,-3,-11,32767,32767,32767,32767,73,64,283,64,32767,32767,32767,32767,32767,32767,32767,32767,32767,32767,32767,0,59,29,25,25,43,41,81,28,49,54,58,51,45,60,32767,22,61,59,38,0,0,-28,-7,-38,-33,32767,46,37,32767,32767,32767,32767,32767,0,63,0,138,127,283,7,115,32767,33,0]} 1. d4 {[%emt 0:00:00]} Nf6 {[%emt 0:18:56]} 2. Bg5 {[%emt 0:00:00]} c5 {[%emt 0:01:35]} 3. Bxf6 {[%emt 0:00:30]} exf6 {[%emt 0:00:06]} 4. e3 {[%emt 0:00:45]} Qb6 {[%emt 0:05:04]} 5. b3 {[%emt 0:01:05]} Be7 {[%emt 0:07:59]} 6. Nf3 {[%emt 0:00:21]} d6 {[%emt 0:02:45]} 7. Be2 {[%emt 0:00:59]} f5 {[%emt 0:04:45]} 8. O-O {[%emt 0:02:02]} Bf6 {[%emt 0:05:15]} 9. c3 {[%emt 0:02:12]} O-O {[%emt 0:01:21]} 10. Nbd2 {[%emt 0:01:23]} g6 {[%emt 0:05:36]} 11. Rc1 {[%emt 0:02:41]} Rd8 {[%emt 0:03:09]} 12. Qc2 {[%emt 0:03:06]} Be6 {[%emt 0:03:24]} 13. Rfd1 {[%emt 0:01:26]} Na6 {[%emt 0:04:27]} 14. Nc4 {[%emt 0:04:16]} Qc7 {[%emt 0:02:52]} 15. d5 {[%emt 0:00:56]} Bd7 {[%emt 0:00:13]} 16. a4 {[%emt 0:00:59]} Re8 {[%emt 0:03:20]} 17. Bd3 {[%emt 0:02:04]} Nb8 {[%emt 0:03:47]} 18. Nfd2 {[%emt 0:02:53]} b5 {[%emt 0:04:45]} 19. axb5 {[%emt 0:01:09]} Rd8 {[%emt 0:03:37]} 20. Na3 {[%emt 0:02:47]} a6 {[%emt 0:04:02]} 21. bxa6 {[%emt 0:07:28]} Nxa6 {[%emt 0:00:07]} 22. Bxa6 {[%emt 0:04:57]} Rxa6 {[%emt 0:00:21]} 23. Nac4 {[%emt 0:01:07]} Rda8 {[%emt 0:01:32]} 24. Qd3 {[%emt 0:01:17]} Qb7 {[%emt 0:02:05]} 25. Rb1 {[%emt 0:02:41]} Bb5 {[%emt 0:07:17]} 26. Rb2 {[%emt 0:07:11]} ({Better is} 26. g3 $14) 26... Be7 {[%emt 0:02:37]} 27. e4 {[%emt 0:05:19]} fxe4 {[%emt 0:01:31]} 28. Nxe4 {[%emt 0:00:31]} Ra1 {[%emt 0:00:40]} 29. Rbb1 {[%emt 0:05:55]} R1a6 {[%emt 0:00:29]} 30. h3 {[%emt 0:02:19]} Qc7 {[%emt 0:00:26]} 31. Ned2 {[%emt 0:02:50]} Bf6 {[%emt 0:00:25]} 32. Rdc1 {[%emt 0:02:19]} Bg7 {[%emt 0:00:21]} 33. Qg3 {[%emt 0:01:51]} f5 {[%emt 0:01:00]} 34. b4 {[%emt 0:00:38]} (34. Nf3 $16) 34... Bh6 {[%emt 0:00:24]} 35. Qh4 {[%emt 0:04:21]} Bg7 {[%emt 0:00:45]} 36. Na5 {[%emt 0:02:17]} (36. bxc5 $14 Qxc5 37. Ne3) 36... Bd3 {[%emt 0:00:14]} 37. Ra1 {[%emt 0:01:15]} Qd7 {[%emt 0:00:37]} 38. Ndb3 {[%emt 0:02:03]} cxb4 {[%emt 0:00:22]} 39. Qxb4 {[%emt 0:00:35]} Qc7 {[%emt 0:00:25]} (39... Qb5 $15 40. Nc6 Qxb4 41. Nxb4 Rxa1 42. Nxa1 Bb5) 40. Nc6 {[%emt 0:00:44]} Rxa1 {[%emt 0:00:13]} 41. Rxa1 {[%emt 0:00:07]} Rxa1+ {[%emt 0:00:02]} 42. Nxa1 {[%emt 0:00:09]} Be4 {[%emt 0:00:10]} 43. Qb5 {[%emt 0:04:24]} Bxc3 44. Nb3 {[%emt 0:00:18]} Bf6 {[%emt 0:02:14] [#]} (44... Qg7 $1 $11) 45. f3 $1 {[%emt 0:00:47]} Bc2 $2 {[%emt 0:00:34]} (45... Bb1 $16) 46. Nba5 $2 {[%emt 0:00:44]} (46. Nbd4 $18) 46... Bd1 {[%emt 0:00:38]} (46... Bc3 $11) 47. Kf2 {[%emt 0:04:00]} Bc2 {[%emt 0:00:22]} 48. Kg1 $11 {[%emt 0:01:19]} 1/2-1/2

[Event "2nd Kalyan Dombivali 2019"]
[Site "Kalyan"]
[Date "2019.01.31"]
[Round "4"]
[White "Akshit Jha"]
[Black "Ahmed, Feroz"]
[Result "0-1"]
[ECO "B07"]
[WhiteElo "1604"]
[BlackElo "1919"]
[Annotator "NA RC"]
[PlyCount "92"]
[EventDate "2019.01.28"]
[EventType "swiss"]
[EventRounds "10"]
[EventCountry "IND"]
[SourceTitle "playchess.com"]
[Source "ChessBase"]
[SourceQuality "1"]
[TimeControl "5400+30"]

{[%evp 18,90,39,35,41,-22,1,32767,32767,32767,32767,32767,-14,-19,-12,-18,-11,-12,-8,-9,14,0,8,4,42,24,20,0,26,32767,0,-6,-22,32767,32767,-41,0,-25,-28,-47,53,-28,-25,-32,-39,32767,-1,-82,0,-85,32767,-293,-341,-419,-469,-575,-640,-601,-427,-449,-457,-491,-583,-466,32767,-625,32767,-587,-740,-932,-1057,32767,32767,-29985,-29990]} 1. e4 {[%emt 0:00:00]} d6 {[%emt 0:00:13]} 2. d4 {[%emt 0:00:00]} g6 {[%emt 0:00:04]} 3. Nc3 {[%emt 0:00:00]} Bg7 {[%emt 0:00:09]} 4. Be2 {[%emt 0:00:03]} Nf6 {[%emt 0:01:27]} 5. h4 {[%emt 0:00:06]} h5 {[%emt 0:02:02]} 6. Nf3 {[%emt 0:00:33]} Nbd7 {[%emt 0:03:09]} 7. Ng5 {[%emt 0:02:44]} e5 {[%emt 0:03:52]} 8. dxe5 {[%emt 0:04:44]} Nxe5 {[%emt 0:01:13]} 9. Bf4 {[%emt 0:01:09]} Qe7 {[%emt 0:11:58]} 10. O-O {[%emt 0:04:13]} O-O {[%emt 0:09:54]} 11. Nf3 {[%emt 0:05:20]} (11. Qd2 $14) 11... Bd7 {[%emt 0:12:08]} 12. Nxe5 {[%emt 0:00:49]} dxe5 {[%emt 0:00:10]} 13. Bg5 {[%emt 0:00:04]} c6 {[%emt 0:00:18]} 14. Bf3 {[%emt 0:00:53]} Be6 {[%emt 0:01:14]} 15. Qe2 {[%emt 0:01:28]} Qb4 {[%emt 0:00:59]} 16. Rfb1 {[%emt 0:01:13]} Nh7 {[%emt 0:02:23]} 17. a3 {[%emt 0:01:49]} Qa5 {[%emt 0:00:48]} 18. Be3 {[%emt 0:00:22]} b5 {[%emt 0:02:08]} 19. b4 {[%emt 0:07:31]} Qc7 {[%emt 0:00:07]} 20. a4 {[%emt 0:00:26]} Bc4 {[%emt 0:02:27]} 21. Qe1 {[%emt 0:00:45]} a6 {[%emt 0:04:18]} 22. a5 {[%emt 0:01:34]} Nf6 {[%emt 0:01:24]} 23. Rd1 {[%emt 0:01:29]} Rfe8 {[%emt 0:01:14]} 24. Bb6 {[%emt 0:01:19]} Qb7 {[%emt 0:00:49]} 25. Nb1 {[%emt 0:05:23]} Be6 {[%emt 0:03:13]} 26. Na3 {[%emt 0:02:59]} Ng4 {[%emt 0:04:48]} 27. g3 {[%emt 0:03:53]} f5 {[%emt 0:03:54]} 28. Rab1 {[%emt 0:12:55]} Rf8 {[%emt 0:01:08]} ({Black should play} 28... f4 $15) 29. Qc3 {[%emt 0:05:21]} ({White should try} 29. Rd6 $14 Qe7 30. Bc5 (30. Rxc6 f4 $11)) 29... Rac8 {[%emt 0:06:43]} 30. Rf1 {[%emt 0:03:39]} Kh7 {[%emt 0:04:06]} 31. Rbd1 {[%emt 0:04:23] [#]} f4 {[%emt 0:02:40]} ({Better is} 31... fxe4 $1 $17 32. Bg2 {[#]} e3 $1 {[%mdl 512]} 33. Bxe3 Nxe3 34. Qxe3 Bg4) 32. Kg2 {[%emt 0:01:34]} Rf6 {[%emt 0:02:13]} (32... Rfe8 $15) 33. Bxg4 {[%emt 0:03:01]} (33. Nb1 $1 $11 {keeps the balance.}) 33... hxg4 {[%emt 0:02:12]} 34. Qxe5 $2 {[%emt 0:02:02]} (34. Kg1 $17) 34... fxg3 {[%emt 0:01:44]} 35. Qxg3 {[%emt 0:00:18]} (35. Qc5 $142 gxf2 36. Rxf2) 35... c5 {[%emt 0:00:07]} 36. Rfe1 {[%emt 0:13:13]} cxb4 {[%emt 0:01:45]} 37. Nb1 {[%emt 0:00:08]} Rxc2 {[%emt 0:00:13]} 38. Qd6 {[%emt 0:01:39]} b3 {[%emt 0:00:58]} 39. Kg1 {[%emt 0:02:10]} Qf7 {[%emt 0:00:49]} 40. Nd2 {[%emt 0:05:02]} Bc8 {[%emt 0:02:17]} 41. Qb4 $2 {[%emt 0:01:00]} (41. Qd3 g3 42. fxg3) 41... b2 {[%emt 0:02:18]} 42. e5 {[%emt 0:00:50]} Rf4 {[%emt 0:00:40]} 43. Ne4 {[%emt 0:00:37]} Qf5 {[%emt 0:00:57]} 44. Rd4 {[%emt 0:02:48]} Rfxf2 {[%emt 0:01:13]} 45. Ng5+ {[%emt 0:00:17]} Kh6 {[%emt 0:00:13]} 46. Rxg4 {[%emt 0:00:25]} Qxg4+ {[%emt 0:00:27]} 0-1

[Event "2nd Kalyan Dombivali 2019"]
[Site "Kalyan"]
[Date "2019.01.31"]
[Round "4"]
[White "Pingale Shivraj"]
[Black "Gogate Yash"]
[Result "1-0"]
[ECO "C00"]
[WhiteElo "1580"]
[BlackElo "1232"]
[Annotator "NA RC"]
[PlyCount "95"]
[EventDate "2019.01.28"]
[EventType "swiss"]
[EventRounds "10"]
[EventCountry "IND"]
[SourceTitle "playchess.com"]
[Source "ChessBase"]
[SourceQuality "1"]
[TimeControl "5400+30"]

1. e4 {[%emt 0:00:00]} d6 {[%emt 0:00:00]} 2. d4 {[%emt 0:00:00]} e6 {[%emt 0:00:11]} 3. Bd3 {[%emt 0:00:02]} c6 {[%emt 0:00:12]} 4. f4 {[%emt 0:00:21]} Ne7 {[%emt 0:00:28]} 5. Nf3 {[%emt 0:00:08]} g6 {[%emt 0:00:28]} 6. O-O {[%emt 0:01:01]} Bg7 {[%emt 0:00:19]} 7. c3 {[%emt 0:01:47]} b6 {[%emt 0:00:57]} 8. Na3 {[%emt 0:02:57]} Bb7 {[%emt 0:01:18]} 9. Nc2 {[%emt 0:00:26]} Nd7 {[%emt 0:00:47]} 10. Qe1 {[%emt 0:01:08]} Qc7 {[%emt 0:01:16]} 11. Bd2 {[%emt 0:00:56]} f6 {[%emt 0:01:18]} 12. a4 {[%emt 0:01:05]} c5 {[%emt 0:01:02]} 13. Qe2 {[%emt 0:02:33]} Rc8 {[%emt 0:00:57]} 14. Na3 {[%emt 0:02:52]} Kf7 {[%emt 0:03:06]} 15. Nb5 {[%emt 0:00:42]} Qb8 {[%emt 0:00:42]} 16. e5 {[%emt 0:00:20]} Rc6 {[%emt 0:02:54]} 17. exf6 {[%emt 0:07:20]} Bxf6 {[%emt 0:00:55]} 18. Ng5+ {[%emt 0:00:35]} Bxg5 {[%emt 0:00:19]} 19. fxg5+ {[%emt 0:00:12]} Nf5 {[%emt 0:00:12]} 20. d5 {[%emt 0:01:04]} Ne5 {[%emt 0:01:00]} 21. dxc6 {[%emt 0:05:59]} Bxc6 {[%emt 0:00:14]} 22. Bxf5 {[%emt 0:00:56]} exf5 {[%emt 0:00:21]} 23. Bf4 {[%emt 0:01:47]} Re8 {[%emt 0:00:29]} 24. Bxe5 {[%emt 0:02:48]} Rxe5 {[%emt 0:00:10]} 25. Qd2 {[%emt 0:04:50]} Rd5 {[%emt 0:02:08]} 26. Qf4 {[%emt 0:00:53]} Re5 {[%emt 0:01:15]} 27. Rae1 {[%emt 0:00:31]} Rxe1 {[%emt 0:01:30]} 28. Rxe1 {[%emt 0:01:08]} Bxb5 {[%emt 0:05:37]} 29. axb5 {[%emt 0:00:13]} Qd8 {[%emt 0:00:34]} 30. Qe3 {[%emt 0:01:26]} Qd7 {[%emt 0:00:15]} 31. c4 {[%emt 0:00:17]} Qd8 {[%emt 0:03:15]} 32. Qe6+ {[%emt 0:00:48]} Kf8 {[%emt 0:00:43]} 33. Qf6+ {[%emt 0:00:24]} Qxf6 {[%emt 0:00:11]} 34. gxf6 {[%emt 0:00:02]} Kf7 {[%emt 0:00:16]} 35. Re7+ {[%emt 0:00:10]} Kxf6 {[%emt 0:00:09]} 36. Rxa7 {[%emt 0:00:02]} Ke5 {[%emt 0:00:18]} 37. Rb7 {[%emt 0:00:08]} Kd4 {[%emt 0:00:07]} 38. b3 {[%emt 0:00:10]} Kc3 {[%emt 0:00:08]} 39. Rxb6 {[%emt 0:00:03]} Kxb3 {[%emt 0:00:12]} 40. Rxd6 {[%emt 0:00:03]} Kxc4 {[%emt 0:00:16]} 41. b6 {[%emt 0:00:03]} Kc3 {[%emt 0:00:14]} 42. b7 {[%emt 0:00:03]} c4 {[%emt 0:00:11]} 43. b8=Q {[%emt 0:00:06]} Kc2 {[%emt 0:00:10]} 44. Qb4 {[%emt 0:00:31]} c3 {[%emt 0:00:09]} 45. Rc6 {[%emt 0:00:02]} Kd1 {[%emt 0:00:28]} 46. Qxc3 {[%emt 0:00:07]} Ke2 {[%emt 0:00:16]} 47. Re6+ {[%emt 0:00:11]} Kd1 {[%emt 0:00:10]} 48. Re1# {[%emt 0:00:03]} 1-0